[Event "Early-Titled-Tuesday-Blitz-September-26-2023"]
[Site "Chess.com"]
[Date "2023.09.26"]
[Round "7"]
[White "Flopezin"]
[Black "Yurasova_Daria"]
[Result "0-1"]
[WhiteElo "2310"]
[BlackElo "2485"]
[TimeControl "180+1"]
[EndTime "9:19:18 PDT"]
[Termination "Yurasova_Daria won by resignation"]

1. e4 {[%clk 0:03:00.9]} 1... e5 {[%clk 0:03:00]} 2. Nf3 {[%clk 0:03:00.9]} 2...
Nc6 {[%clk 0:02:59.8]} 3. Nc3 {[%clk 0:03:01.2]} 3... Nf6 {[%clk 0:02:59.6]} 4.
d4 {[%clk 0:03:01.1]} 4... exd4 {[%clk 0:02:58.5]} 5. Nxd4 {[%clk 0:03:02]} 5...
Bb4 {[%clk 0:02:57.3]} 6. Nxc6 {[%clk 0:03:01.6]} 6... bxc6 {[%clk 0:02:58.2]}
7. Bd3 {[%clk 0:02:59.3]} 7... d5 {[%clk 0:02:57.7]} 8. exd5 {[%clk 0:02:59.2]}
8... cxd5 {[%clk 0:02:58.6]} 9. O-O {[%clk 0:02:59.6]} 9... O-O {[%clk
0:02:59.2]} 10. Bg5 {[%clk 0:03:00.1]} 10... Bxc3 {[%clk 0:02:44.1]} 11. bxc3
{[%clk 0:02:57.5]} 11... Rb8 {[%clk 0:02:44.6]} 12. Qf3 {[%clk 0:02:51.5]} 12...
Rb6 {[%clk 0:02:41.7]} 13. Rad1 {[%clk 0:02:40.9]} 13... Bb7 {[%clk 0:02:39.3]}
14. Qg3 {[%clk 0:02:24.6]} 14... c5 {[%clk 0:02:32.6]} 15. Rfe1 {[%clk
0:02:16.5]} 15... Qb8 {[%clk 0:02:24.8]} 16. Qh4 {[%clk 0:02:03.1]} 16... h6
{[%clk 0:02:21.4]} 17. Bf4 {[%clk 0:01:52.1]} 17... Qd8 {[%clk 0:02:17.4]} 18.
Be5 {[%clk 0:01:49.1]} 18... Ba6 {[%clk 0:02:12.2]} 19. Re3 {[%clk 0:01:43.4]}
19... Bxd3 {[%clk 0:02:09.1]} 20. cxd3 {[%clk 0:01:41.6]} 20... Re6 {[%clk
0:02:06.4]} 21. d4 {[%clk 0:01:34.6]} 21... Ne4 {[%clk 0:02:01.1]} 22. Qg4
{[%clk 0:01:19.1]} 22... Rg6 {[%clk 0:01:58.6]} 23. Qf3 {[%clk 0:01:12.4]} 23...
Qa5 {[%clk 0:01:55.2]} 24. h4 {[%clk 0:01:06.7]} 24... Qxa2 {[%clk 0:01:44.8]}
25. h5 {[%clk 0:01:06.1]} 25... Ng5 {[%clk 0:01:42.8]} 26. Qf5 {[%clk
0:00:59.6]} 26... Ra6 {[%clk 0:01:33.6]} 27. Rg3 {[%clk 0:00:59]} 27... Qe2
{[%clk 0:01:31.3]} 28. Rf1 {[%clk 0:00:54.1]} 28... Qe4 {[%clk 0:01:11.7]} 29.
Qxe4 {[%clk 0:00:39.9]} 29... dxe4 {[%clk 0:01:12.6]} 30. dxc5 {[%clk
0:00:38.4]} 30... Rc8 {[%clk 0:01:07.4]} 31. Bd6 {[%clk 0:00:34.6]} 31... Ne6
{[%clk 0:01:07]} 32. Re1 {[%clk 0:00:27.9]} 32... Ra4 {[%clk 0:01:06.6]} 33.
Rge3 {[%clk 0:00:23.7]} 33... Nxc5 {[%clk 0:01:04.5]} 34. Bxc5 {[%clk
0:00:23.1]} 34... Rxc5 {[%clk 0:01:05.4]} 35. Rxe4 {[%clk 0:00:23.9]} 35... Rxe4
{[%clk 0:00:57.2]} 36. Rxe4 {[%clk 0:00:24.8]} 36... Kf8 {[%clk 0:00:50.1]} 37.
Ra4 {[%clk 0:00:23.5]} 37... a5 {[%clk 0:00:45.2]} 38. c4 {[%clk 0:00:23.7]}
38... Rxh5 {[%clk 0:00:44.8]} 39. f3 {[%clk 0:00:20.6]} 39... Ke7 {[%clk
0:00:44]} 40. Kf1 {[%clk 0:00:21]} 40... Kd6 {[%clk 0:00:42.4]} 41. Ke2 {[%clk
0:00:21]} 41... Kc6 {[%clk 0:00:43]} 42. g4 {[%clk 0:00:20.2]} 42... Rh2+ {[%clk
0:00:42.4]} 43. Ke3 {[%clk 0:00:20.9]} 43... Kb6 {[%clk 0:00:42.6]} 44. Ke4
{[%clk 0:00:20.8]} 44... Rd2 {[%clk 0:00:37.8]} 45. c5+ {[%clk 0:00:21]} 45...
Kb5 {[%clk 0:00:37.6]} 46. Ra3 {[%clk 0:00:19.4]} 46... Rc2 {[%clk 0:00:36.7]}
47. Kd4 {[%clk 0:00:17.8]} 47... Rc4+ {[%clk 0:00:36.9]} 48. Kd3 {[%clk
0:00:17]} 48... Rxc5 {[%clk 0:00:36.3]} 49. Ke4 {[%clk 0:00:17.8]} 49... Kb4
{[%clk 0:00:36]} 50. Kf4 {[%clk 0:00:18.3]} 50... Kxa3 {[%clk 0:00:36.2]} 0-1

[Event "Early-Titled-Tuesday-Blitz-September-26-2023"]
[Site "Chess.com"]
[Date "2023.09.26"]
[Round "7"]
[White "gueraumasague"]
[Black "Zampronha1971"]
[Result "1-0"]
[WhiteElo "2463"]
[BlackElo "2271"]
[TimeControl "180+1"]
[EndTime "9:19:19 PDT"]
[Termination "gueraumasague won on time"]

1. e4 {[%clk 0:03:00.9]} 1... c5 {[%clk 0:02:59.4]} 2. Nc3 {[%clk 0:03:01.3]}
2... e6 {[%clk 0:02:59.8]} 3. f4 {[%clk 0:03:00.9]} 3... Nc6 {[%clk 0:03:00.1]}
4. Bb5 {[%clk 0:03:01.4]} 4... Nd4 {[%clk 0:02:57.6]} 5. Nf3 {[%clk 0:03:01.1]}
5... a6 {[%clk 0:02:55.5]} 6. Be2 {[%clk 0:03:00.4]} 6... b5 {[%clk 0:02:54.9]}
7. d3 {[%clk 0:03:00.6]} 7... Bb7 {[%clk 0:02:54.6]} 8. Nxd4 {[%clk 0:02:59.7]}
8... cxd4 {[%clk 0:02:54.2]} 9. Nb1 {[%clk 0:02:59.7]} 9... Rc8 {[%clk
0:02:42.2]} 10. Nd2 {[%clk 0:02:59]} 10... Qc7 {[%clk 0:02:37.1]} 11. Nf3 {[%clk
0:02:58.7]} 11... Qxc2 {[%clk 0:02:31.3]} 12. Qxc2 {[%clk 0:02:51.9]} 12... Rxc2
{[%clk 0:02:30.6]} 13. Nxd4 {[%clk 0:02:52.5]} 13... Bb4+ {[%clk 0:02:27.3]} 14.
Kd1 {[%clk 0:02:39.2]} 14... Rc8 {[%clk 0:02:27.4]} 15. Bd2 {[%clk 0:02:30.1]}
15... Bxd2 {[%clk 0:02:19.6]} 16. Kxd2 {[%clk 0:02:31]} 16... Ne7 {[%clk
0:02:19.2]} 17. Rhc1 {[%clk 0:02:23.4]} 17... d6 {[%clk 0:02:19.1]} 18. Rxc8+
{[%clk 0:02:17.6]} 18... Nxc8 {[%clk 0:02:20]} 19. a4 {[%clk 0:02:15.5]} 19...
bxa4 {[%clk 0:02:08.8]} 20. Rxa4 {[%clk 0:02:16.4]} 20... Kd7 {[%clk 0:02:06.1]}
21. Rb4 {[%clk 0:02:12.9]} 21... Kc7 {[%clk 0:02:04.5]} 22. Nb3 {[%clk
0:02:07.6]} 22... Na7 {[%clk 0:01:59.5]} 23. Na5 {[%clk 0:02:05.4]} 23... Rb8
{[%clk 0:01:48.8]} 24. Ke3 {[%clk 0:01:25.5]} 24... Nc6 {[%clk 0:01:40]} 25.
Rxb7+ {[%clk 0:01:10]} 25... Rxb7 {[%clk 0:01:39.4]} 26. Nxb7 {[%clk 0:01:10.9]}
26... Kxb7 {[%clk 0:01:39.5]} 27. d4 {[%clk 0:01:11.1]} 27... Kb6 {[%clk
0:01:35]} 28. Kd3 {[%clk 0:01:00]} 28... f6 {[%clk 0:01:25.2]} 29. Kc4 {[%clk
0:00:54.8]} 29... Na5+ {[%clk 0:01:24.6]} 30. Kb4 {[%clk 0:00:54.2]} 30... Nc6+
{[%clk 0:01:24.7]} 31. Kc3 {[%clk 0:00:55]} 31... d5 {[%clk 0:01:02.8]} 32. Bd3
{[%clk 0:00:49.3]} 32... Ne7 {[%clk 0:01:00]} 33. g3 {[%clk 0:00:43.9]} 33...
dxe4 {[%clk 0:00:55.4]} 34. Bxe4 {[%clk 0:00:44.8]} 34... h6 {[%clk 0:00:46.2]}
35. Kc4 {[%clk 0:00:45]} 35... Nc8 {[%clk 0:00:18.6]} 36. Bh7 {[%clk 0:00:36]}
36... Nd6+ {[%clk 0:00:18.2]} 37. Kd3 {[%clk 0:00:36.7]} 37... Kc6 {[%clk
0:00:15.6]} 38. Be4+ {[%clk 0:00:29]} 38... Nxe4 {[%clk 0:00:14.6]} 39. Kxe4
{[%clk 0:00:29.9]} 39... Kb5 {[%clk 0:00:14.1]} 40. f5 {[%clk 0:00:27.4]} 40...
exf5+ {[%clk 0:00:11.4]} 41. Kxf5 {[%clk 0:00:28.3]} 41... Kc6 {[%clk
0:00:08.6]} 42. Ke6 {[%clk 0:00:27.8]} 42... Kc7 {[%clk 0:00:07.2]} 43. d5
{[%clk 0:00:26.9]} 43... Kd8 {[%clk 0:00:02.3]} 44. b4 {[%clk 0:00:25.6]} 1-0

[Event "Early-Titled-Tuesday-Blitz-September-26-2023"]
[Site "Chess.com"]
[Date "2023.09.26"]
[Round "7"]
[White "JosefineHeinemann"]
[Black "ashookk"]
[Result "1-0"]
[WhiteElo "2545"]
[BlackElo "2239"]
[TimeControl "180+1"]
[EndTime "9:19:27 PDT"]
[Termination "JosefineHeinemann won by resignation"]

1. Nf3 {[%clk 0:03:00.9]} 1... Nf6 {[%clk 0:03:00.2]} 2. g3 {[%clk 0:02:52]}
2... g6 {[%clk 0:02:58.1]} 3. Bg2 {[%clk 0:02:51.8]} 3... Bg7 {[%clk 0:02:59]}
4. O-O {[%clk 0:02:52.3]} 4... O-O {[%clk 0:02:58.9]} 5. d4 {[%clk 0:02:52.3]}
5... d6 {[%clk 0:02:58.8]} 6. c4 {[%clk 0:02:49.6]} 6... c5 {[%clk 0:02:58.9]}
7. dxc5 {[%clk 0:02:49.2]} 7... dxc5 {[%clk 0:02:58.6]} 8. Nc3 {[%clk
0:02:47.2]} 8... Nc6 {[%clk 0:02:58]} 9. Be3 {[%clk 0:02:47.4]} 9... Qa5 {[%clk
0:02:52.8]} 10. Qa4 {[%clk 0:02:44.6]} 10... Qb4 {[%clk 0:02:36.1]} 11. Qxb4
{[%clk 0:02:38]} 11... cxb4 {[%clk 0:02:33.8]} 12. Nd5 {[%clk 0:02:38.2]} 12...
Nxd5 {[%clk 0:02:31.5]} 13. cxd5 {[%clk 0:02:39.1]} 13... Ne5 {[%clk 0:02:30.8]}
14. Nxe5 {[%clk 0:02:35.4]} 14... Bxe5 {[%clk 0:02:31.7]} 15. Rab1 {[%clk
0:02:35.9]} 15... Bf5 {[%clk 0:02:21.2]} 16. Rbc1 {[%clk 0:02:28.6]} 16... Bd6
{[%clk 0:02:06]} 17. b3 {[%clk 0:02:25.6]} 17... b6 {[%clk 0:02:04.7]} 18. Bd4
{[%clk 0:02:24.4]} 18... Rac8 {[%clk 0:02:02.2]} 19. e4 {[%clk 0:02:24.7]} 19...
Bd7 {[%clk 0:02:01.4]} 20. e5 {[%clk 0:02:24.5]} 20... Bc5 {[%clk 0:01:44.5]}
21. Bxc5 {[%clk 0:02:22.9]} 21... Rxc5 {[%clk 0:01:40.6]} 22. Rxc5 {[%clk
0:02:22.3]} 22... bxc5 {[%clk 0:01:41.5]} 23. Rc1 {[%clk 0:02:22.7]} 23... Rc8
{[%clk 0:01:40.6]} 24. Bf1 {[%clk 0:02:22.9]} 24... a5 {[%clk 0:01:39.4]} 25. f4
{[%clk 0:02:13.9]} 25... a4 {[%clk 0:01:39.1]} 26. Kf2 {[%clk 0:02:11.7]} 26...
a3 {[%clk 0:01:27.2]} 27. Bd3 {[%clk 0:02:08.6]} 27... Kf8 {[%clk 0:01:10.1]}
28. Kf3 {[%clk 0:02:07.2]} 28... h5 {[%clk 0:01:02.8]} 29. Ke3 {[%clk
0:01:57.9]} 29... Ke8 {[%clk 0:01:00.8]} 30. Bc4 {[%clk 0:01:55.7]} 30... Kd8
{[%clk 0:00:59]} 31. Rh1 {[%clk 0:01:54.5]} 31... Kc7 {[%clk 0:00:53.2]} 32. h3
{[%clk 0:01:48.4]} 32... Rh8 {[%clk 0:00:47.6]} 33. d6+ {[%clk 0:01:41.1]} 33...
exd6 {[%clk 0:00:47.6]} 34. Bxf7 {[%clk 0:01:41.8]} 34... dxe5 {[%clk 0:00:41]}
35. fxe5 {[%clk 0:01:41.7]} 35... Bf5 {[%clk 0:00:40.5]} 36. e6 {[%clk 0:01:09]}
36... Bxe6 {[%clk 0:00:31]} 37. Rf1 {[%clk 0:00:43.7]} 37... Bf5 {[%clk
0:00:21.8]} 38. g4 {[%clk 0:00:39]} 38... hxg4 {[%clk 0:00:22.7]} 39. hxg4
{[%clk 0:00:39.9]} 39... Bxg4 {[%clk 0:00:22.7]} 40. Bxg6 {[%clk 0:00:38.9]}
40... Kd6 {[%clk 0:00:19.2]} 41. Rf6+ {[%clk 0:00:36.3]} 41... Be6 {[%clk
0:00:19.7]} 42. Bf5 {[%clk 0:00:25.8]} 42... Re8 {[%clk 0:00:18.2]} 43. Ke4
{[%clk 0:00:22.1]} 43... Kd7 {[%clk 0:00:17.8]} 44. Rxe6 {[%clk 0:00:21.2]}
44... Rxe6+ {[%clk 0:00:18.7]} 45. Kd5 {[%clk 0:00:21.9]} 1-0

[Event "Early-Titled-Tuesday-Blitz-September-26-2023"]
[Site "Chess.com"]
[Date "2023.09.26"]
[Round "7"]
[White "Grossboss19"]
[Black "kereswasbest"]
[Result "1/2-1/2"]
[WhiteElo "2518"]
[BlackElo "2306"]
[TimeControl "180+1"]
[EndTime "9:19:28 PDT"]
[Termination "Game drawn - insufficient material"]

1. d4 {[%clk 0:02:56.3]} 1... d5 {[%clk 0:02:59.7]} 2. Nc3 {[%clk 0:02:46.1]}
2... Nf6 {[%clk 0:02:58]} 3. Bf4 {[%clk 0:02:43.4]} 3... Bf5 {[%clk 0:02:57.3]}
4. e3 {[%clk 0:02:39.1]} 4... e6 {[%clk 0:02:57.4]} 5. Nge2 {[%clk 0:02:32.1]}
5... Bd6 {[%clk 0:02:49.4]} 6. Qd2 {[%clk 0:02:22.3]} 6... O-O {[%clk
0:02:44.1]} 7. h4 {[%clk 0:02:18.2]} 7... c5 {[%clk 0:02:44.3]} 8. Bxd6 {[%clk
0:02:10.6]} 8... Qxd6 {[%clk 0:02:43.9]} 9. Ng3 {[%clk 0:02:11]} 9... cxd4
{[%clk 0:02:37.1]} 10. Nxf5 {[%clk 0:02:06.8]} 10... exf5 {[%clk 0:02:37.5]} 11.
Qxd4 {[%clk 0:02:01.3]} 11... Nc6 {[%clk 0:02:36.3]} 12. Qd2 {[%clk 0:01:58]}
12... Ne4 {[%clk 0:02:30.9]} 13. Nxe4 {[%clk 0:01:43.9]} 13... fxe4 {[%clk
0:02:31.8]} 14. O-O-O {[%clk 0:01:43.2]} 14... Rfd8 {[%clk 0:02:27]} 15. a3
{[%clk 0:01:40.4]} 15... Rac8 {[%clk 0:02:23.3]} 16. Kb1 {[%clk 0:01:36.2]}
16... Qc5 {[%clk 0:02:07.6]} 17. f3 {[%clk 0:01:21.5]} 17... d4 {[%clk
0:02:06.8]} 18. fxe4 {[%clk 0:01:01]} 18... dxe3 {[%clk 0:02:05.1]} 19. Qc1
{[%clk 0:01:01.2]} 19... Nd4 {[%clk 0:01:38.7]} 20. Bd3 {[%clk 0:00:56.2]} 20...
e2 {[%clk 0:01:15.1]} 21. Rde1 {[%clk 0:00:53.3]} 21... b5 {[%clk 0:00:39.7]}
22. Bxe2 {[%clk 0:00:45.4]} 22... Nxc2 {[%clk 0:00:36.3]} 23. Rd1 {[%clk
0:00:43.2]} 23... Nd4 {[%clk 0:00:29]} 24. Qxc5 {[%clk 0:00:41.4]} 24... Rxc5
{[%clk 0:00:29.8]} 25. Rd2 {[%clk 0:00:38.4]} 25... Rc6 {[%clk 0:00:20.5]} 26.
Rhd1 {[%clk 0:00:37.4]} 26... Rcd6 {[%clk 0:00:20.5]} 27. e5 {[%clk 0:00:36]}
27... Rd5 {[%clk 0:00:15.9]} 28. Bxb5 {[%clk 0:00:32.9]} 28... Rxb5 {[%clk
0:00:14.8]} 29. Rxd4 {[%clk 0:00:32.7]} 29... Rxd4 {[%clk 0:00:13.7]} 30. Rxd4
{[%clk 0:00:33.6]} 30... g6 {[%clk 0:00:13.8]} 31. Ra4 {[%clk 0:00:29.9]} 31...
a5 {[%clk 0:00:13.2]} 32. Re4 {[%clk 0:00:27.4]} 32... Kf8 {[%clk 0:00:13.4]}
33. Kc2 {[%clk 0:00:24.5]} 33... Ke7 {[%clk 0:00:14]} 34. Kc3 {[%clk 0:00:24]}
34... Ke6 {[%clk 0:00:14.5]} 35. a4 {[%clk 0:00:22.7]} 35... Rc5+ {[%clk
0:00:10.5]} 36. Kd3 {[%clk 0:00:22.7]} 36... Rd5+ {[%clk 0:00:10.7]} 37. Ke3
{[%clk 0:00:19.8]} 37... Rxe5 {[%clk 0:00:11.3]} 38. Kd4 {[%clk 0:00:17.2]}
38... Rxe4+ {[%clk 0:00:11]} 39. Kxe4 {[%clk 0:00:18.1]} 39... f5+ {[%clk
0:00:11.3]} 40. Kd4 {[%clk 0:00:18.3]} 40... h6 {[%clk 0:00:11.2]} 41. Kc4
{[%clk 0:00:18.4]} 41... g5 {[%clk 0:00:11.5]} 42. hxg5 {[%clk 0:00:19.3]} 42...
hxg5 {[%clk 0:00:11.9]} 43. b4 {[%clk 0:00:20.2]} 43... axb4 {[%clk 0:00:11.4]}
44. Kxb4 {[%clk 0:00:21.1]} 44... Kd5 {[%clk 0:00:11.2]} 45. Kc3 {[%clk
0:00:20.5]} 45... f4 {[%clk 0:00:11.2]} 46. Kd3 {[%clk 0:00:20.4]} 46... g4
{[%clk 0:00:11.7]} 47. a5 {[%clk 0:00:20.2]} 47... f3 {[%clk 0:00:12.2]} 48.
gxf3 {[%clk 0:00:14.5]} 48... gxf3 {[%clk 0:00:12.9]} 49. a6 {[%clk 0:00:15.4]}
49... Kc6 {[%clk 0:00:12.8]} 50. a7 {[%clk 0:00:15.9]} 50... Kb7 {[%clk
0:00:13.1]} 51. Ke3 {[%clk 0:00:16.8]} 51... Kxa7 {[%clk 0:00:12.6]} 52. Kxf3
{[%clk 0:00:17.3]} 1/2-1/2

[Event "Early-Titled-Tuesday-Blitz-September-26-2023"]
[Site "Chess.com"]
[Date "2023.09.26"]
[Round "7"]
[White "kleopl"]
[Black "chessdjw"]
[Result "0-1"]
[WhiteElo "2461"]
[BlackElo "2681"]
[TimeControl "180+1"]
[EndTime "9:19:33 PDT"]
[Termination "chessdjw won on time"]

1. e4 {[%clk 0:03:00.9]} 1... e5 {[%clk 0:02:59.6]} 2. Nf3 {[%clk 0:03:00.5]}
2... Nc6 {[%clk 0:03:00.2]} 3. c3 {[%clk 0:03:00.9]} 3... d6 {[%clk 0:02:45.3]}
4. d4 {[%clk 0:03:00.3]} 4... Be7 {[%clk 0:02:42.2]} 5. Bb5 {[%clk 0:02:57.6]}
5... Nf6 {[%clk 0:02:40.3]} 6. d5 {[%clk 0:02:45.4]} 6... a6 {[%clk 0:02:39.4]}
7. Ba4 {[%clk 0:02:45.7]} 7... b5 {[%clk 0:02:39.2]} 8. Bc2 {[%clk 0:02:46]}
8... Nb8 {[%clk 0:02:36.5]} 9. a4 {[%clk 0:02:45.2]} 9... Bb7 {[%clk 0:02:33.5]}
10. Qe2 {[%clk 0:02:43.9]} 10... c6 {[%clk 0:02:32]} 11. dxc6 {[%clk 0:02:38.6]}
11... Bxc6 {[%clk 0:02:27.3]} 12. axb5 {[%clk 0:02:37.3]} 12... Bxb5 {[%clk
0:02:22.4]} 13. Bd3 {[%clk 0:02:37.5]} 13... Nbd7 {[%clk 0:02:11.9]} 14. O-O
{[%clk 0:02:32.4]} 14... Bxd3 {[%clk 0:02:07.9]} 15. Qxd3 {[%clk 0:02:32.4]}
15... Nc5 {[%clk 0:02:08.6]} 16. Qc4 {[%clk 0:02:24.7]} 16... Nfxe4 {[%clk
0:01:53.6]} 17. b4 {[%clk 0:02:12]} 17... d5 {[%clk 0:01:53.7]} 18. Qe2 {[%clk
0:02:11.1]} 18... Nd7 {[%clk 0:01:35.7]} 19. Rxa6 {[%clk 0:02:07]} 19... O-O
{[%clk 0:01:31.4]} 20. Rd1 {[%clk 0:01:58.1]} 20... Qc8 {[%clk 0:01:06]} 21.
Rxa8 {[%clk 0:01:50.9]} 21... Qxa8 {[%clk 0:01:06.9]} 22. Qd3 {[%clk 0:01:32.9]}
22... Nef6 {[%clk 0:00:59.4]} 23. Qe2 {[%clk 0:01:20.3]} 23... e4 {[%clk
0:00:49.4]} 24. Nd4 {[%clk 0:01:20.2]} 24... Ne5 {[%clk 0:00:50.1]} 25. Nf5
{[%clk 0:01:14.7]} 25... Bd8 {[%clk 0:00:50.5]} 26. Be3 {[%clk 0:01:07.1]} 26...
Qc8 {[%clk 0:00:50.4]} 27. Ng3 {[%clk 0:00:52]} 27... Re8 {[%clk 0:00:45.8]} 28.
Bg5 {[%clk 0:00:39.3]} 28... Nd3 {[%clk 0:00:27.4]} 29. h3 {[%clk 0:00:30.3]}
29... Bb6 {[%clk 0:00:25.7]} 30. Be3 {[%clk 0:00:20.1]} 30... Qe6 {[%clk
0:00:21.2]} 31. Bxb6 {[%clk 0:00:16.3]} 31... Qxb6 {[%clk 0:00:22.1]} 32. Nf5
{[%clk 0:00:16.3]} 32... Ra8 {[%clk 0:00:15.2]} 33. g4 {[%clk 0:00:11.5]} 33...
h6 {[%clk 0:00:14]} 34. Ne3 {[%clk 0:00:07.4]} 34... Qc6 {[%clk 0:00:11.8]} 35.
Kg2 {[%clk 0:00:06.3]} 35... Nd7 {[%clk 0:00:11.8]} 36. Rxd3 {[%clk 0:00:04.3]}
36... exd3 {[%clk 0:00:11.7]} 37. Qf3 {[%clk 0:00:04.2]} 37... Ne5 {[%clk
0:00:10.1]} 38. Qxd5 {[%clk 0:00:03.2]} 38... Qxd5+ {[%clk 0:00:10.6]} 39. Nxd5
{[%clk 0:00:04.1]} 39... Nc4 {[%clk 0:00:11.1]} 40. Kf3 {[%clk 0:00:03.5]} 40...
Ra1 {[%clk 0:00:11.2]} 41. Ke4 {[%clk 0:00:01.8]} 41... Rxb1 {[%clk 0:00:11.6]}
42. Kxd3 {[%clk 0:00:02.3]} 42... Nd6 {[%clk 0:00:11.9]} 43. Ne7+ {[%clk
0:00:01.2]} 43... Kf8 {[%clk 0:00:11.6]} 44. Nd5 {[%clk 0:00:02.1]} 44... Rd1+
{[%clk 0:00:11.2]} 0-1

[Event "Early-Titled-Tuesday-Blitz-September-26-2023"]
[Site "Chess.com"]
[Date "2023.09.26"]
[Round "7"]
[White "LionTheLeon_06"]
[Black "BlitzWizard04"]
[Result "0-1"]
[WhiteElo "2801"]
[BlackElo "2647"]
[TimeControl "180+1"]
[EndTime "9:19:37 PDT"]
[Termination "BlitzWizard04 won on time"]

1. e4 {[%clk 0:03:00.9]} 1... c5 {[%clk 0:02:59.2]} 2. Nf3 {[%clk 0:03:01.3]}
2... e6 {[%clk 0:02:58.5]} 3. g3 {[%clk 0:03:01.2]} 3... d5 {[%clk 0:02:55.8]}
4. exd5 {[%clk 0:03:00.8]} 4... exd5 {[%clk 0:02:56]} 5. Bg2 {[%clk 0:03:01.2]}
5... Nc6 {[%clk 0:02:56.1]} 6. O-O {[%clk 0:03:01.4]} 6... Nf6 {[%clk
0:02:55.5]} 7. d4 {[%clk 0:03:01.8]} 7... cxd4 {[%clk 0:02:55.8]} 8. Nxd4 {[%clk
0:03:02.7]} 8... Bg4 {[%clk 0:02:56.2]} 9. Qd3 {[%clk 0:02:48.3]} 9... Be7
{[%clk 0:02:46]} 10. Nd2 {[%clk 0:02:47.5]} 10... O-O {[%clk 0:02:45.9]} 11.
N2b3 {[%clk 0:02:41.5]} 11... Ne5 {[%clk 0:02:42.9]} 12. Qe3 {[%clk 0:02:32.3]}
12... Nc4 {[%clk 0:02:38.4]} 13. Qd3 {[%clk 0:02:28.9]} 13... Qd7 {[%clk
0:02:33.4]} 14. Re1 {[%clk 0:02:02.9]} 14... Rfe8 {[%clk 0:02:29.9]} 15. Bf4
{[%clk 0:01:22.7]} 15... Nxb2 {[%clk 0:02:26.7]} 16. Qc3 {[%clk 0:01:23.3]}
16... Nc4 {[%clk 0:02:25.1]} 17. a4 {[%clk 0:01:24]} 17... a5 {[%clk 0:02:22.2]}
18. Qd3 {[%clk 0:01:18.4]} 18... Bh5 {[%clk 0:02:15.3]} 19. Nb5 {[%clk
0:01:13.1]} 19... Bg6 {[%clk 0:02:12.9]} 20. Qd4 {[%clk 0:01:09.8]} 20... Bxc2
{[%clk 0:02:08.3]} 21. Nd2 {[%clk 0:00:25.9]} 21... Nxd2 {[%clk 0:02:02.2]} 22.
Bxd2 {[%clk 0:00:26.8]} 22... Be4 {[%clk 0:01:57]} 23. Rac1 {[%clk 0:00:17.7]}
23... Rac8 {[%clk 0:01:54.8]} 24. Bxa5 {[%clk 0:00:16.8]} 24... Rxc1 {[%clk
0:01:52.1]} 25. Rxc1 {[%clk 0:00:17.7]} 25... Bxg2 {[%clk 0:01:52.6]} 26. Kxg2
{[%clk 0:00:18.6]} 26... Ra8 {[%clk 0:01:52.4]} 27. Bd2 {[%clk 0:00:15.5]} 27...
Ne4 {[%clk 0:01:51.4]} 28. Rc7 {[%clk 0:00:14.5]} 28... Qe6 {[%clk 0:01:47.3]}
29. Rxb7 {[%clk 0:00:14.9]} 29... Nxd2 {[%clk 0:01:32.8]} 30. Qxd2 {[%clk
0:00:14.6]} 30... Rxa4 {[%clk 0:01:29.4]} 31. Rb8+ {[%clk 0:00:11.7]} 31... Bf8
{[%clk 0:01:29.4]} 32. Nc3 {[%clk 0:00:12]} 32... Ra5 {[%clk 0:00:50.1]} 33. Qd4
{[%clk 0:00:11.6]} 33... Qd6 {[%clk 0:00:41.1]} 34. Rc8 {[%clk 0:00:11.4]} 34...
h6 {[%clk 0:00:34.6]} 35. Nd1 {[%clk 0:00:10.9]} 35... Kh7 {[%clk 0:00:28.8]}
36. Ne3 {[%clk 0:00:09.8]} 36... g6 {[%clk 0:00:25.6]} 37. h4 {[%clk 0:00:07.6]}
37... Bg7 {[%clk 0:00:25.7]} 38. Qd3 {[%clk 0:00:08.1]} 38... d4 {[%clk
0:00:22.7]} 39. h5 {[%clk 0:00:02.9]} 39... Ra3 {[%clk 0:00:19]} 40. hxg6+
{[%clk 0:00:02.5]} 40... fxg6 {[%clk 0:00:19.9]} 41. Qd1 {[%clk 0:00:01.7]}
41... Qd7 {[%clk 0:00:13.8]} 0-1

[Event "Early-Titled-Tuesday-Blitz-September-26-2023"]
[Site "Chess.com"]
[Date "2023.09.26"]
[Round "7"]
[White "Chaos_Magic"]
[Black "CarlosjPineror"]
[Result "0-1"]
[WhiteElo "2417"]
[BlackElo "2570"]
[TimeControl "180+1"]
[EndTime "9:19:45 PDT"]
[Termination "CarlosjPineror won on time"]

1. d4 {[%clk 0:02:58.5]} 1... Nf6 {[%clk 0:02:59.5]} 2. c4 {[%clk 0:02:57.8]}
2... g6 {[%clk 0:02:59.3]} 3. Nc3 {[%clk 0:02:57.6]} 3... Bg7 {[%clk 0:02:59.3]}
4. e4 {[%clk 0:02:57.7]} 4... O-O {[%clk 0:02:59.2]} 5. Nf3 {[%clk 0:02:57.7]}
5... c5 {[%clk 0:02:59.4]} 6. d5 {[%clk 0:02:57.8]} 6... d6 {[%clk 0:02:59.6]}
7. h3 {[%clk 0:02:56.9]} 7... e6 {[%clk 0:02:59.9]} 8. Bd3 {[%clk 0:02:56.4]}
8... exd5 {[%clk 0:03:00]} 9. exd5 {[%clk 0:02:56.8]} 9... Re8+ {[%clk
0:03:00.3]} 10. Be3 {[%clk 0:02:57]} 10... Na6 {[%clk 0:02:59.7]} 11. O-O {[%clk
0:02:56.3]} 11... Nc7 {[%clk 0:03:00.3]} 12. a4 {[%clk 0:02:54.7]} 12... a6
{[%clk 0:03:00]} 13. Qd2 {[%clk 0:02:52.5]} 13... Rb8 {[%clk 0:02:59.9]} 14. a5
{[%clk 0:02:51.1]} 14... b5 {[%clk 0:02:58.1]} 15. axb6 {[%clk 0:02:50.3]} 15...
Rxb6 {[%clk 0:02:58.1]} 16. Bg5 {[%clk 0:02:49.4]} 16... Bd7 {[%clk 0:02:46.3]}
17. Rae1 {[%clk 0:02:31.7]} 17... Rxe1 {[%clk 0:02:45.1]} 18. Rxe1 {[%clk
0:02:31.5]} 18... Qb8 {[%clk 0:02:45.2]} 19. Nd1 {[%clk 0:02:30.7]} 19... Nfe8
{[%clk 0:02:42.5]} 20. Re7 {[%clk 0:02:22.2]} 20... Ba4 {[%clk 0:02:37.3]} 21.
Qf4 {[%clk 0:02:07.3]} 21... f6 {[%clk 0:02:35.5]} 22. Nc3 {[%clk 0:02:06.9]}
22... Bb3 {[%clk 0:01:50.6]} 23. Bh6 {[%clk 0:02:06.2]} 23... Qd8 {[%clk
0:01:49.6]} 24. Re1 {[%clk 0:01:29.3]} 24... Rb7 {[%clk 0:01:35.8]} 25. Bxg7
{[%clk 0:01:15.2]} 25... Nxg7 {[%clk 0:01:34.8]} 26. Ne4 {[%clk 0:01:11.6]}
26... Nce8 {[%clk 0:01:34.5]} 27. g4 {[%clk 0:00:52.4]} 27... Ba4 {[%clk
0:01:18.6]} 28. Ra1 {[%clk 0:00:47.3]} 28... Rb4 {[%clk 0:01:12.2]} 29. Nfd2
{[%clk 0:00:38.1]} 29... a5 {[%clk 0:01:11]} 30. Kg2 {[%clk 0:00:23.9]} 30...
Qe7 {[%clk 0:01:01]} 31. f3 {[%clk 0:00:21]} 31... f5 {[%clk 0:00:47.6]} 32. Ng5
{[%clk 0:00:18.5]} 32... h6 {[%clk 0:00:42]} 33. Ne6 {[%clk 0:00:17.5]} 33... g5
{[%clk 0:00:34.6]} 34. Qe3 {[%clk 0:00:14]} 34... f4 {[%clk 0:00:27.2]} 35. Qe4
{[%clk 0:00:14]} 35... Nf6 {[%clk 0:00:27]} 36. Qg6 {[%clk 0:00:13.8]} 36...
Rxb2 {[%clk 0:00:26.4]} 37. Rxa4 {[%clk 0:00:09.5]} 37... Rxd2+ {[%clk
0:00:26.1]} 38. Kh1 {[%clk 0:00:09.7]} 38... Qf7 {[%clk 0:00:20.1]} 39. Nxg7
{[%clk 0:00:08.6]} 39... Qxg7 {[%clk 0:00:19.7]} 40. Rxa5 {[%clk 0:00:07.4]}
40... Qxg6 {[%clk 0:00:18.4]} 41. Bxg6 {[%clk 0:00:07.7]} 41... Nd7 {[%clk
0:00:15.7]} 42. Ra6 {[%clk 0:00:05.8]} 42... Ne5 {[%clk 0:00:13.2]} 43. Bf5
{[%clk 0:00:05.4]} 43... Nxf3 {[%clk 0:00:11.9]} 44. Ra8+ {[%clk 0:00:02.4]}
44... Kg7 {[%clk 0:00:11.8]} 45. Ra7+ {[%clk 0:00:02.7]} 45... Kf6 {[%clk
0:00:12.1]} 0-1